bitfinex/quotes_BTCUSD_20241111
["timestamp","ask_amount","ask_price","bid_price","bid_amount"]
[1731307709610,0.82304221,80801.0,80800.0,0.32411795]
[1731307710044,0.82304221,80801.0,80800.0,0.20035595]
[1731307710408,0.82304221,80801.0,80800.0,0.32411795]
[1731307711020,0.82304221,80801.0,80800.0,0.20035595]
[1731307712110,0.6951,80801.0,80800.0,0.32411795]
[1731307712960,1.419163,80805.0,80800.0,0.32411795]
[1731307712961,1.419163,80805.0,80804.0,0.123756]
[1731307713164,1.419163,80805.0,80804.0,0.146756]
[1731307713405,1.419163,80805.0,80804.0,0.278656]
[1731307713823,1.419163,80805.0,80804.0,0.283656]
[1731307714052,1.419163,80805.0,80804.0,0.288656]
[1731307714298,1.419163,80805.0,80804.0,0.53703821]
[1731307714846,1.419163,80805.0,80804.0,0.54302129]
[1731307716224,1.241063,80805.0,80804.0,0.54302129]
[1731307716433,1.112963,80805.0,80804.0,0.51132129]
[1731307716950,0.2536445,80805.0,80804.0,0.59658515]
[1731307717196,0.2536445,80805.0,80804.0,0.41112129]
[1731307721206,0.2535728,80805.0,80804.0,0.41112129]
[1731307723130,0.2535728,80805.0,80804.0,0.15217908]
[1731307723673,0.2535728,80805.0,80804.0,0.12973908]
[1731307724733,0.2535728,80805.0,80804.0,0.15273908]
[1731307728387,0.2535728,80805.0,80804.0,0.15773908]
[1731307728539,0.2535728,80805.0,80804.0,0.26273908]
[1731307728928,0.2535728,80805.0,80804.0,0.28997908]
[1731307729909,0.2535728,80805.0,80804.0,0.26273908]
[1731307731074,0.2535728,80805.0,80804.0,0.15273908]
[1731307732885,0.2535728,80805.0,80804.0,0.15358108]
[1731307733109,0.2572568,80805.0,80804.0,0.15358108]
[1731307733493,0.2552568,80805.0,80804.0,0.15358108]
[1731307733892,0.2552568,80805.0,80804.0,0.02982508]
[1731307734114,0.3824568,80805.0,80804.0,0.00682508]
[1731307734721,0.3824568,80805.0,80804.0,0.13058108]
[1731307735099,0.3804568,80805.0,80804.0,0.13058108]
[1731307735297,0.3824568,80805.0,80804.0,0.13058108]
[1731307735683,0.3804568,80805.0,80804.0,0.13058108]
[1731307736762,0.3824568,80805.0,80804.0,0.00682508]
[1731307736963,0.5062108,80805.0,80804.0,0.00682508]
[1731307737481,0.3824568,80805.0,80804.0,0.00682508]
[1731307738134,0.3824568,80805.0,80804.0,0.13058108]
[1731307738683,0.3804568,80805.0,80804.0,0.13058108]
[1731307738885,0.3824568,80805.0,80804.0,0.13058108]
[1731307739303,0.3824568,80805.0,80804.0,0.00682508]
[1731307739834,0.3824568,80805.0,80804.0,0.000842]
[1731307739835,0.5062108,80805.0,80804.0,0.000842]
[1731307740041,0.3824568,80805.0,80804.0,0.000842]
[1731307740247,0.5062108,80805.0,80804.0,0.000842]
[1731307740478,0.63215301,80805.0,80804.0,0.000842]
[1731307741660,0.50839901,80805.0,80804.0,0.000842]
[1731307741868,0.3824568,80805.0,80804.0,0.000842]
[1731307742274,0.3804568,80805.0,80804.0,0.124598]
[1731307742743,0.2552568,80805.0,80804.0,0.124598]
[1731307743123,0.2552568,80805.0,80804.0,0.147598]
[1731307743904,0.2552568,80805.0,80804.0,0.174838]
[1731307744529,0.2552568,80805.0,80804.0,0.184838]
[1731307744731,0.2552568,80805.0,80804.0,0.41078021]
[1731307747480,0.19270361,80805.0,80804.0,0.41078021]
[1731307747708,0.18281777,80805.0,80804.0,0.41078021]
[1731307750717,0.15038753,80805.0,80804.0,0.41078021]
[1731307750917,0.001684,80810.0,80809.0,0.133748]
[1731307751128,0.18536941,80826.0,80825.0,0.256724]
[1731307751366,0.18536941,80826.0,80825.0,0.40990621]
[1731307751761,0.002,80843.0,80834.0,0.12871]
[1731307752169,0.002,80843.0,80834.0,0.005]
[1731307752374,0.002,80843.0,80840.0,0.123701]
[1731307752523,0.002,80843.0,80832.0,0.247424]
[1731307752730,0.002,80843.0,80831.0,0.005]
[1731307752970,0.002,80843.0,80840.0,0.123701]
[1731307753404,0.0764,80844.0,80840.0,0.123701]
[1731307754306,0.001684,80841.0,80840.0,0.123701]
[1731307755637,0.001684,80841.0,80840.0,0.150941]
[1731307756197,0.001684,80841.0,80840.0,0.40735683]
[1731307756396,0.001684,80841.0,80840.0,0.40488321]
[1731307756841,0.001684,80841.0,80840.0,0.40988321]
[1731307757220,0.001684,80841.0,80840.0,0.4157231]
[1731307762809,0.18536941,80856.0,80855.0,0.123678]
[1731307763030,0.18536941,80856.0,80855.0,0.223678]
[1731307763565,0.0763,80860.0,80859.0,0.123672]
[1731307766169,0.0763,80860.0,80859.0,0.128672]
[1731307766581,0.0805,80868.0,80859.0,0.005]
[1731307766888,0.0805,80868.0,80856.0,0.247353]
[1731307766889,0.0805,80868.0,80867.0,0.123659]
[1731307767433,0.0805,80868.0,80867.0,0.128659]
[1731307768850,0.0805,80868.0,80867.0,0.155899]
[1731307769924,0.0463,80870.0,80869.0,0.123656]
[1731307770127,0.0463,80870.0,80869.0,0.12612888]
[1731307770462,0.0463,80870.0,80869.0,0.13112888]
[1731307770892,0.0463,80870.0,80869.0,0.128656]
[1731307771898,0.0463,80870.0,80869.0,0.150896]
[1731307773795,0.0463,80870.0,80869.0,0.123656]
[1731307774986,0.0483,80870.0,80869.0,0.123656]
[1731307775598,0.0463,80870.0,80869.0,0.123656]
[1731307780565,0.0483,80870.0,80869.0,0.123656]
[1731307780793,0.0463,80870.0,80869.0,0.123656]
[1731307784127,0.0483,80870.0,80869.0,0.123656]
[1731307784284,0.0463,80870.0,80869.0,0.123656]
[1731307787363,0.0774,80875.0,80874.0,0.123649]
[1731307793390,0.0774,80875.0,80871.0,0.123653]
[1731307793588,0.0774,80875.0,80867.0,0.00601225]
[1731307793807,0.123651,80873.0,80867.0,0.00601225]
[1731307793976,0.123652,80872.0,80865.0,0.123661]
[1731307794181,0.002,80862.0,80861.0,0.00588936]
[1731307794346,0.002,80862.0,80861.0,0.223669]
[1731307794552,0.002,80870.0,80858.0,0.005]
[1731307794762,0.002,80870.0,80869.0,0.123656]
[1731307796962,0.079082,80875.0,80874.0,0.123649]
[1731307797188,0.1159942,80875.0,80860.0,0.1]
[1731307797388,0.0472,80870.0,80865.0,0.123662]
[1731307797801,0.123672,80859.0,80850.0,0.18536941]
[1731307798002,0.123682,80852.0,80851.0,0.18536941]
[1731307798234,0.002,80843.0,80836.0,0.252411]
[1731307798442,0.1255,80852.0,80840.0,0.2474]
[1731307798443,0.1624122,80852.0,80840.0,0.2474]
[1731307798639,0.1624122,80852.0,80836.0,0.247411]
[1731307798640,0.1255,80852.0,80851.0,0.123684]
[1731307799922,0.6951,80858.0,80857.0,0.123675]
[1731307800890,0.6971,80858.0,80857.0,0.123675]
[1731307801081,0.6951,80858.0,80857.0,0.123675]
[1731307801733,0.083,80860.0,80859.0,0.123672]
[1731307802932,0.083,80860.0,80855.0,0.247356]
[1731307803131,0.083,80860.0,80856.0,0.123676]
[1731307803497,0.083,80860.0,80859.0,0.123672]
[1731307803668,0.03695997,80869.0,80857.0,0.005]
[1731307803669,0.0832,80869.0,80857.0,0.005]
[1731307803871,0.18536941,80865.0,80861.0,0.247338]
[1731307804114,0.0832,80869.0,80868.0,0.123658]
[1731307804259,0.0473,80871.0,80870.0,0.123655]
[1731307804463,0.001682,80875.0,80874.0,0.123649]
[1731307805483,0.002,80870.0,80868.0,0.247314]
[1731307805686,0.001682,80875.0,80868.0,0.00580567]
[1731307805897,0.001682,80875.0,80874.0,0.123649]
[1731307806097,0.002,80873.0,80872.0,0.123651]
[1731307806632,0.002,80873.0,80864.0,0.247328]
[1731307806633,0.002,80872.0,80864.0,0.247328]
[1731307806784,0.0476,80865.0,80863.0,0.00592244]
[1731307807118,0.0476,80865.0,80859.0,0.000841]
[1731307807119,0.0476,80865.0,80864.0,0.123664]
[1731307807339,0.1256,80865.0,80864.0,0.123664]
[1731307808524,0.078,80865.0,80864.0,0.123664]
[1731307809342,0.0758,80873.0,80872.0,0.123652]
[1731307809875,0.0758,80873.0,80870.0,0.123654]
[1731307809876,0.002,80871.0,80870.0,0.123654]
[1731307810076,0.002,80871.0,80858.0,0.247344]
[1731307810077,0.002,80865.0,80864.0,0.123663]
[1731307810277,0.002,80865.0,80860.0,0.247341]
[1731307810278,0.002,80865.0,80860.0,0.12367]
[1731307810478,0.0851,80861.0,80856.0,0.1]
[1731307810688,0.0493,80860.0,80851.0,0.247367]
[1731307811042,0.0493,80860.0,80859.0,0.000841]
[1731307811474,0.35833941,80860.0,80859.0,0.000841]
[1731307811621,0.38201221,80860.0,80859.0,0.000841]
[1731307812006,0.25834221,80860.0,80859.0,0.000841]
[1731307812208,0.1304,80860.0,80859.0,0.124513]
[1731307812593,0.1324,80860.0,80859.0,0.124513]
[1731307812838,0.1324,80860.0,80859.0,0.12354778]
[1731307813655,0.1304,80860.0,80859.0,0.12354778]
[1731307814121,0.1304,80860.0,80853.0,0.247361]
[1731307814328,0.002,80848.0,80843.0,0.123695]
[1731307814499,0.0811,80848.0,80843.0,0.02724]
[1731307814653,0.002,80845.0,80844.0,0.123694]
[1731307815468,0.0791,80848.0,80844.0,0.247389]
[1731307815663,0.0811,80848.0,80846.0,0.123691]
[1731307816568,0.0791,80848.0,80847.0,0.12369]
[1731307816990,0.002,80857.0,80856.0,0.123676]
[1731307817206,0.0772,80858.0,80857.0,0.123675]
[1731307817405,0.0772,80858.0,80854.0,0.123678]
[1731307817614,0.002,80850.0,80849.0,0.371061]
[1731307818069,0.0772,80858.0,80847.0,0.000841]
[1731307818070,0.002,80848.0,80847.0,0.000841]
[1731307818339,0.002,80848.0,80847.0,0.124531]
[1731307818733,0.002,80852.0,80851.0,0.123684]
[1731307819526,0.002,80856.0,80855.0,0.123678]
[1731307819734,0.002,80856.0,80847.0,0.000841]
[1731307819735,0.0772,80858.0,80850.0,0.247371]
[1731307819974,0.0772,80858.0,80853.0,0.12368]
[1731307820396,0.0772,80858.0,80854.0,0.123678]
[1731307820846,0.0772,80858.0,80852.0,0.123682]
[1731307821030,0.002,80856.0,80853.0,0.12368]
[1731307821229,0.002,80855.0,80849.0,0.247374]
[1731307821435,0.002,80848.0,80847.0,0.000841]
[1731307821709,0.125688,80848.0,80847.0,0.000841]
[1731307822536,0.251588,80848.0,80847.0,0.000841]
[1731307822865,0.247381,80847.0,80843.0,0.00572]
[1731307823070,0.002,80844.0,80843.0,0.02724]
[1731307823573,0.125695,80844.0,80843.0,0.02724]
[1731307823759,0.002,80844.0,80843.0,0.02724]
[1731307824521,0.125695,80844.0,80843.0,0.02724]
[1731307825477,0.32983721,80844.0,80843.0,0.02724]
[1731307825805,0.32983721,80844.0,80841.0,0.000841]
[1731307825806,0.125698,80842.0,80841.0,0.000841]
[1731307826498,0.171698,80842.0,80841.0,0.000841]
[1731307828440,0.29764021,80842.0,80841.0,0.000841]
[1731307830396,0.169698,80842.0,80841.0,0.000841]
[1731307830619,0.046,80842.0,80841.0,0.000841]
[1731307831317,0.048,80842.0,80841.0,0.000841]
[1731307831530,0.046,80842.0,80841.0,0.12454]
[1731307832825,0.046,80842.0,80841.0,0.123578]
[1731307833050,0.046,80842.0,80833.0,0.247422]
[1731307833051,0.002,80835.0,80834.0,0.12371]
[1731307833272,0.002,80831.0,80830.0,0.00577365]
[1731307833480,0.002,80831.0,80830.0,0.02724]
[1731307834133,0.0824,80831.0,80830.0,0.02724]
[1731307834556,0.0824,80831.0,80830.0,0.150956]
[1731307834782,0.0804,80831.0,80830.0,0.150956]
[1731307835416,0.0798,80841.0,80831.0,0.247429]
[1731307835623,0.0798,80841.0,80840.0,0.123701]
[1731307835824,0.0798,80841.0,80838.0,0.123704]
[1731307836435,0.0798,80841.0,80840.0,0.123701]
[1731307837884,0.002,80838.0,80837.0,0.247409]
[1731307838066,0.002,80838.0,80837.0,0.371114]
[1731307838269,0.0798,80841.0,80840.0,0.123701]
[1731307840211,0.0811,80848.0,80847.0,0.12369]
[1731307840403,0.7436,80852.0,80851.0,0.123684]
[1731307840404,0.0465,80852.0,80851.0,0.123684]
[1731307840607,0.18536941,80857.0,80856.0,0.123676]
[1731307841011,0.001682,80859.0,80858.0,0.123673]
[1731307842814,0.001682,80859.0,80858.0,0.1538351]
[1731307844268,0.001682,80859.0,80858.0,0.2768351]
[1731307844907,0.001682,80859.0,80858.0,0.40777731]
[1731307845109,0.001682,80859.0,80858.0,0.41277731]
[1731307847924,0.001682,80860.0,80859.0,0.01]
[1731307848208,0.001682,80875.0,80874.0,0.246649]
[1731307848449,0.001682,80875.0,80874.0,0.24912165]
[1731307848877,0.001682,80875.0,80874.0,0.246649]
[1731307849332,0.001682,80875.0,80874.0,0.38006376]
[1731307849542,0.001682,80875.0,80874.0,0.37759121]
[1731307849966,0.001682,80875.0,80874.0,0.38259121]
[1731307850176,0.001682,80875.0,80874.0,0.40683121]
[1731307851042,0.001682,80875.0,80874.0,0.41274075]
[1731307852972,0.001682,80875.0,80874.0,0.40725883]
[1731307853161,0.001682,80875.0,80874.0,0.41225883]
[1731307853827,0.001682,80875.0,80874.0,0.58397629]
[1731307855062,0.18536941,80887.0,80874.0,0.58397629]
[1731307855063,0.18536941,80887.0,80880.0,0.233639]
[1731307855239,0.18536941,80887.0,80880.0,0.38258121]
[1731307855409,0.18536941,80887.0,80880.0,0.40682121]
[1731307855986,0.000701,80888.0,80880.0,0.40682121]
[1731307856383,0.003184,80881.0,80880.0,0.40682121]
[1731307856587,0.000701,80888.0,80884.0,0.233633]
[1731307856788,0.000701,80888.0,80884.0,0.40928732]
[1731307857000,0.000701,80888.0,80884.0,0.40681521]
[1731307861341,0.000601,80885.0,80884.0,0.40681521]
[1731307862348,0.000601,80885.0,80884.0,0.40181521]
[1731307862690,0.00066101,80886.0,80885.0,0.256632]
[1731307862844,0.00066101,80886.0,80885.0,0.40681421]
[1731307864063,0.000701,80890.0,80889.0,0.256626]
[1731307864265,0.000701,80890.0,80889.0,0.57852567]
[1731307865098,0.000701,80890.0,80889.0,0.40180821]
[1731307865263,0.000701,80890.0,80889.0,0.40680821]
[1731307866763,0.000701,80890.0,80889.0,0.40180821]
[1731307866961,0.000701,80890.0,80889.0,0.270866]
[1731307867160,0.125601,80890.0,80889.0,0.170866]
[1731307868029,0.125601,80890.0,80889.0,0.147866]
[1731307869200,0.127601,80890.0,80889.0,0.147866]
[1731307869408,0.127601,80890.0,80889.0,0.02424]
[1731307869634,0.125601,80890.0,80889.0,0.02424]
[1731307869827,0.125601,80890.0,80889.0,0.147866]
[1731307870277,0.125601,80890.0,80889.0,0.02424]
[1731307870403,0.125601,80890.0,80889.0,0.147866]
[1731307871247,0.127601,80890.0,80889.0,0.02424]
[1731307871451,0.127601,80890.0,80889.0,0.147866]
[1731307871663,0.125601,80890.0,80889.0,0.147866]
[1731307873061,0.125601,80890.0,80889.0,0.147625]
[1731307874786,0.125601,80890.0,80889.0,0.023999]
[1731307875234,0.127601,80890.0,80889.0,0.023999]
[1731307875566,0.127601,80890.0,80889.0,0.147625]
[1731307875748,0.127601,80890.0,80889.0,0.023999]
[1731307876183,0.127601,80890.0,80889.0,0.147625]
[1731307877125,0.38216721,80890.0,80889.0,0.023999]
[1731307877327,0.252732,80885.0,80884.0,0.000841]
[1731307877531,0.37867421,80885.0,80884.0,0.000841]
[1731307878505,0.37867421,80885.0,80873.0,0.18536941]
[1731307878506,0.249649,80874.0,80873.0,0.18536941]
[1731307878926,0.249649,80874.0,80869.0,0.00589258]
[1731307879093,0.124,80874.0,80871.0,0.123652]
[1731307879301,0.124,80874.0,80864.0,0.18536941]
[1731307879506,0.124,80874.0,80871.0,0.123652]
[1731307879707,0.002,80872.0,80871.0,0.123652]
[1731307880697,0.124,80874.0,80865.0,0.12371568]
[1731307880698,0.002,80866.0,80865.0,0.12371568]
[1731307880904,0.0461,80866.0,80865.0,0.123662]
[1731307883156,0.0461,80866.0,80865.0,0.12318017]
[1731307883943,0.0461,80866.0,80864.0,0.00577878]
[1731307884137,0.002,80864.0,80863.0,0.123665]
[1731307884585,0.002,80865.0,80864.0,0.123664]
[1731307884781,0.0461,80866.0,80865.0,0.123662]
[1731307886411,0.0461,80866.0,80863.0,0.247331]
[1731307886412,0.0824,80867.0,80866.0,0.123661]
[1731307887030,0.0489,80874.0,80873.0,0.12365]
[1731307887235,0.0822,80882.0,80881.0,0.123638]
[1731307887486,0.0464,80885.0,80884.0,0.123633]
[1731307889534,0.0464,80885.0,80884.0,0.24734868]
[1731307889759,0.0464,80885.0,80884.0,0.123633]
[1731307890164,0.0464,80885.0,80882.0,0.247271]
[1731307890165,0.001682,80889.0,80888.0,0.123627]
[1731307890403,0.001682,80889.0,80888.0,0.14909941]
[1731307891469,0.001682,80889.0,80888.0,0.27281509]
[1731307892132,0.001682,80889.0,80888.0,0.40375708]
[1731307892355,0.001682,80889.0,80888.0,0.50128489]
[1731307893002,0.001682,80889.0,80888.0,0.50080298]
[1731307896054,0.001682,80889.0,80888.0,0.50580298]
[1731307900643,0.002682,80889.0,80888.0,0.50580298]
[1731307901512,0.002682,80889.0,80888.0,0.50664398]
[1731307902548,0.002682,80889.0,80888.0,0.51158598]
[1731307903198,0.002682,80889.0,80888.0,0.51110406]
[1731307905612,0.001682,80889.0,80888.0,0.51110406]
[1731307906019,0.002682,80889.0,80888.0,0.51110406]
[1731307906454,0.001682,80889.0,80888.0,0.51110406]
[1731307906660,0.002682,80889.0,80888.0,0.51110406]
[1731307910926,0.002682,80889.0,80888.0,0.48310406]
[1731307911131,0.002682,80889.0,80888.0,0.47816206]
[1731307912026,0.083182,80889.0,80888.0,0.34721985]
[1731307912201,0.082182,80889.0,80888.0,0.34721985]
[1731307912600,0.132382,80889.0,80888.0,0.34721985]
[1731307912852,0.134382,80889.0,80888.0,0.24721985]
[1731307913059,0.133382,80889.0,80888.0,0.12455668]
[1731307913187,0.133382,80889.0,80888.0,0.124468]
[1731307913383,0.134382,80889.0,80888.0,0.124468]
[1731307913792,0.133382,80889.0,80888.0,0.124468]
[1731307914339,0.134382,80889.0,80888.0,0.124468]
[1731307914599,0.134382,80889.0,80888.0,0.000841]
[1731307914801,0.134382,80889.0,80888.0,0.124468]
[1731307915379,0.133382,80889.0,80888.0,0.124468]
[1731307915703,0.132382,80889.0,80888.0,0.124468]
[1731307916344,0.131382,80889.0,80888.0,0.124468]
[1731307916608,0.002682,80889.0,80888.0,0.35541021]
[1731307916795,0.002682,80889.0,80888.0,0.50212589]
[1731307917101,0.001682,80889.0,80888.0,0.50212589]
[1731307917228,0.002682,80889.0,80888.0,0.50212589]
[1731307917427,0.002682,80889.0,80888.0,0.50712589]
[1731307917671,0.002682,80889.0,80888.0,0.50212589]
[1731307917879,0.002682,80889.0,80888.0,0.49712589]
[1731307918575,0.001682,80889.0,80888.0,0.49712589]
[1731307918778,0.002682,80889.0,80888.0,0.49712589]
[1731307919335,0.001682,80889.0,80888.0,0.50212589]
[1731307919565,0.002682,80889.0,80888.0,0.50212589]
[1731307921427,0.001682,80889.0,80888.0,0.50212589]
[1731307921984,0.004682,80889.0,80888.0,0.34818368]
[1731307922234,0.004682,80889.0,80888.0,0.12455668]
[1731307922235,0.135782,80889.0,80888.0,0.12455668]
[1731307922368,0.258408,80889.0,80888.0,0.12455668]
[1731307922590,0.259408,80889.0,80888.0,0.12455668]
[1731307923040,0.259408,80889.0,80888.0,0.00035918]
[1731307923426,0.258408,80889.0,80888.0,0.00035918]
[1731307923630,0.134782,80889.0,80888.0,0.00035918]
[1731307923995,0.258408,80889.0,80888.0,0.00035918]
[1731307924395,0.134782,80889.0,80888.0,0.00035918]
[1731307925097,0.134782,80889.0,80878.0,0.247283]
[1731307925098,0.002,80871.0,80857.0,0.18536941]
[1731307925298,0.1248,80869.0,80868.0,0.18536941]
[1731307925497,0.1248,80869.0,80868.0,0.30908509]
[1731307925712,0.002,80866.0,80865.0,0.124503]
[1731307926076,0.1228,80869.0,80865.0,0.000841]
[1731307926284,0.123659,80868.0,80865.0,0.000841]
[1731307926454,0.002,80866.0,80865.0,0.000841]
[1731307926800,0.003,80866.0,80865.0,0.000841]
[1731307929056,0.003,80866.0,80865.0,0.124503]
[1731307930730,0.003,80866.0,80865.0,0.119503]
[1731307931514,0.002,80865.0,80864.0,0.123664]
[1731307931865,0.002,80865.0,80864.0,0.24737968]
[1731307932071,0.001,80866.0,80864.0,0.12371568]
[1731307932290,0.001,80866.0,80865.0,0.123662]
[1731307932522,0.1228,80869.0,80868.0,0.123658]
[1731307933205,0.1228,80869.0,80868.0,0.12293427]
[1731307933644,0.1223,80878.0,80877.0,0.123644]
[1731307934517,0.1223,80878.0,80869.0,0.24731]
[1731307934518,0.002,80872.0,80870.0,0.24731]
[1731307934782,0.002,80872.0,80871.0,0.223653]
[1731307935205,0.002,80873.0,80872.0,0.123652]
[1731307935682,0.002,80875.0,80874.0,0.123649]
[1731307936145,0.002,80875.0,80871.0,0.1]
[1731307936146,0.50533432,80872.0,80871.0,0.223653]
[1731307937235,0.50533432,80872.0,80871.0,0.35206811]
[1731307937508,0.50533432,80872.0,80871.0,0.37759521]
[1731307937729,0.50533432,80872.0,80871.0,0.38259521]
[1731307937937,0.50533432,80872.0,80871.0,0.50631089]
[1731307938722,0.43146318,80872.0,80871.0,0.50631089]
[1731307939053,0.000701,80890.0,80888.0,0.251627]
[1731307939389,0.000701,80890.0,80888.0,0.50628489]
[1731307941187,0.000701,80890.0,80888.0,0.47328489]
[1731307941395,0.129082,80889.0,80888.0,0.47328489]
[1731307941964,0.129082,80889.0,80888.0,0.4792676]
[1731307942164,0.130082,80889.0,80888.0,0.25332539]
[1731307942457,0.130082,80889.0,80888.0,0.12960971]
[1731307944562,0.0819,80876.0,80875.0,0.123647]
[1731307944763,0.0819,80876.0,80875.0,0.12372919]
[1731307945179,0.1294,80876.0,80875.0,8.219e-05]
[1731307945409,0.1274,80876.0,80875.0,8.219e-05]
[1731307945610,0.1274,80876.0,80875.0,0.12372919]
[1731307946052,0.1284,80876.0,80875.0,0.12372919]
[1731307946586,0.1274,80876.0,80875.0,0.12372919]
[1731307946800,0.1274,80876.0,80875.0,0.123647]
[1731307947003,0.1284,80876.0,80875.0,0.12944458]
[1731307947231,0.130084,80876.0,80875.0,0.12944458]
[1731307948236,0.129084,80876.0,80875.0,0.12944458]
[1731307948650,0.130084,80876.0,80875.0,0.12944458]
[1731307949425,0.002684,80876.0,80875.0,0.25538679]
[1731307949635,0.001682,80889.0,80875.0,0.38838679]
[1731307949894,0.001682,80889.0,80888.0,0.251627]
[1731307950057,0.001682,80889.0,80888.0,0.50875705]
[1731307950313,0.000701,80890.0,80889.0,0.256626]
[1731307950513,0.000701,80890.0,80889.0,0.50628389]
[1731307950718,0.000701,80890.0,80889.0,0.50128389]
[1731307952534,0.001701,80890.0,80889.0,0.50128389]
[1731307953142,0.001701,80890.0,80889.0,0.50080098]
[1731307953750,0.001701,80890.0,80889.0,0.50658005]
[1731307956022,0.001701,80890.0,80889.0,0.51158005]
[1731307958910,0.001701,80890.0,80889.0,0.50158005]
[1731307959116,0.084401,80890.0,80889.0,0.47858005]
[1731307959342,0.084401,80890.0,80889.0,0.12940507]
[1731307959546,0.084401,80890.0,80889.0,0.00577907]
[1731307959746,0.086401,80890.0,80885.0,0.247262]
[1731307960025,0.086401,80890.0,80889.0,0.123626]
[1731307960208,0.084401,80890.0,80889.0,0.123626]
[1731307960566,0.086401,80890.0,80889.0,0.123626]
[1731307960768,0.083401,80890.0,80889.0,0.123626]
[1731307961096,0.085401,80890.0,80889.0,0.123626]
[1731307961500,0.083401,80890.0,80889.0,0.123626]
[1731307961748,0.083401,80890.0,80889.0,0.22609843]
[1731307961959,0.083401,80890.0,80889.0,0.223626]
[1731307962109,0.083401,80890.0,80889.0,0.340386]
[1731307962311,0.085401,80890.0,80889.0,0.11676]
[1731307962719,0.209025,80890.0,80889.0,0.11676]
[1731307963174,0.125626,80889.0,80888.0,0.00011718]
[1731307963427,0.002,80889.0,80888.0,0.00011718]
[1731307964375,0.125626,80889.0,80888.0,0.00011718]
[1731307964578,0.002,80889.0,80888.0,0.00011718]
[1731307964781,0.083401,80890.0,80888.0,0.00011718]
[1731307965198,0.083401,80890.0,80888.0,0.12374418]
[1731307965404,0.002,80889.0,80888.0,0.12374418]
[1731307965635,0.002,80889.0,80888.0,0.00011718]
[1731307966221,0.002,80889.0,80888.0,0.12374418]
[1731307966432,0.083401,80890.0,80888.0,0.12374418]
[1731307966433,0.083401,80890.0,80889.0,0.123626]
[1731307967296,0.085401,80890.0,80889.0,0.123626]
[1731307968311,0.083401,80890.0,80889.0,0.123626]
[1731307972372,0.083401,80890.0,80889.0,0.34956821]
[1731307972373,0.000701,80890.0,80889.0,0.34956821]
[1731307972554,0.000701,80890.0,80889.0,0.46632821]
[1731307973276,0.000701,80890.0,80889.0,0.4658453]
[1731307978724,0.000701,80890.0,80889.0,0.4938453]
[1731307982085,1e-06,80892.0,80891.0,0.128623]
[1731307982344,0.05534864,80926.0,80891.0,0.128623]
[1731307982345,0.18536941,80909.0,80904.0,0.005]
[1731307982489,0.002701,80922.0,80904.0,0.54926267]
[1731307982490,0.18536941,80908.0,80904.0,0.54926267]
[1731307982727,0.0776,80919.0,80904.0,0.54926267]
[1731307982728,0.0776,80919.0,80904.0,0.66602267]
[1731307983376,0.000701,80922.0,80921.0,0.123577]
[1731307983578,0.000701,80922.0,80921.0,0.35699045]
[1731307983751,0.000701,80922.0,80921.0,0.35451921]
[1731307984372,0.000701,80922.0,80921.0,0.37751921]
[1731307985204,0.000701,80922.0,80921.0,0.49427921]
[1731307986449,0.000701,80922.0,80921.0,0.47127921]
[1731307986779,0.000701,80922.0,80921.0,0.47705169]
[1731307988801,0.000701,80922.0,80921.0,0.50005169]
[1731307990232,0.000701,80922.0,80921.0,0.67176915]
[1731307993169,0.000701,80922.0,80921.0,0.67128724]
[1731307993852,0.000701,80922.0,80921.0,0.49956978]
[1731307995556,0.000701,80922.0,80921.0,0.67128724]
[1731307997960,0.000701,80922.0,80921.0,0.49956978]
[1731308001605,0.000701,80922.0,80921.0,0.39456978]
[1731308001824,0.000701,80922.0,80921.0,0.37156978]
[1731308001825,0.123601,80922.0,80921.0,0.37156978]
[1731308002030,0.125601,80922.0,80921.0,0.37156978]
[1731308002248,0.123601,80922.0,80921.0,0.37156978]
[1731308002919,0.123601,80922.0,80921.0,0.47156978]
[1731308003106,0.123601,80922.0,80921.0,0.34562757]
[1731308003310,0.125601,80922.0,80921.0,0.34538657]
[1731308003956,0.123601,80922.0,80921.0,0.34538657]
[1731308004386,0.123601,80922.0,80921.0,0.22862657]
[1731308006228,0.123601,80922.0,80921.0,0.12862657]
[1731308006450,0.125601,80922.0,80921.0,0.12862657]
[1731308006983,0.085601,80922.0,80921.0,0.12862657]
[1731308008063,0.085601,80922.0,80921.0,0.12946757]
[1731308008275,0.087283,80922.0,80921.0,0.12946757]
[1731308008742,0.087283,80922.0,80921.0,0.000841]
[1731308009859,0.210858,80922.0,80921.0,0.000841]
[1731308010064,0.087283,80922.0,80921.0,0.000841]
[1731308011371,0.210858,80922.0,80921.0,0.000841]
[1731308011770,0.087283,80922.0,80921.0,0.000841]
[1731308011971,0.087283,80922.0,80921.0,0.124418]
[1731308013307,0.087283,80922.0,80921.0,0.12393617]
[1731308016419,0.087283,80922.0,80921.0,0.00035917]
[1731308016624,0.210858,80922.0,80921.0,0.00035917]
[1731308016821,0.087283,80922.0,80921.0,0.00035917]
[1731308017496,0.210858,80922.0,80921.0,0.00035917]
[1731308017666,0.38757546,80922.0,80921.0,0.00035917]
[1731308018169,0.43210546,80914.0,80913.0,0.18536941]
[1731308018738,0.1318,80905.0,80904.0,0.31490994]
[1731308018978,0.1298,80905.0,80904.0,0.43166994]
[1731308019413,0.1318,80905.0,80904.0,0.24630053]
[1731308021771,0.1298,80905.0,80904.0,0.24630053]
[1731308022317,0.1298,80905.0,80904.0,0.34630053]
[1731308022518,0.6951,80920.0,80918.0,0.123581]
[1731308022519,0.1258,80919.0,80918.0,0.123581]
[1731308022742,0.1278,80919.0,80918.0,0.123581]
[1731308023662,0.002,80915.0,80914.0,0.123587]
[1731308023898,0.002,80913.0,80912.0,0.12359]
[1731308024609,0.002,80913.0,80912.0,0.12947115]
[1731308027722,0.1237,80912.0,80904.0,1.930782]